bitfinex/quotes_ETHUSD_20241203
["timestamp","ask_amount","ask_price","bid_price","bid_amount"]
[1733185203850,0.55,3640.6,3639.6,0.02746921]
[1733185204007,0.25623355,3640.8,3640.3,2.74695]
[1733185204348,0.25623355,3641.0,3640.4,0.0416176]
[1733185204549,0.80623355,3641.0,3640.3,0.0274666]
[1733185204850,0.55,3641.0,3640.3,0.0274666]
[1733185205145,0.55,3641.0,3640.4,0.0416176]
[1733185205449,0.55,3641.0,3640.0,3.43164034]
[1733185205747,0.55,3641.0,3640.4,2.74689]
[1733185205960,0.55,3641.0,3640.2,2.74707]
[1733185206103,3.29651,3641.0,3640.0,2.74724]
[1733185206303,0.55,3641.0,3640.3,0.0416176]
[1733185206510,1.01086193,3641.1,3640.1,0.02746678]
[1733185206735,0.7547,3641.1,3640.6,2.74674]
[1733185207144,1.01086193,3641.1,3640.7,0.04163909]
[1733185207346,0.7547,3641.1,3640.7,0.04163909]
[1733185207647,0.7547,3641.1,3640.2,0.26794071]
[1733185208145,0.7547,3641.1,3640.4,2.74693]
[1733185208353,0.55,3641.0,3640.3,0.04166059]
[1733185208513,0.55,3641.0,3639.6,3.02209]
[1733185208514,0.55,3640.8,3640.1,2.74715]
[1733185208844,0.55,3640.8,3640.4,0.04166059]
[1733185209055,0.55,3640.8,3640.1,2.74715]
[1733185209232,0.8198,3640.9,3640.3,2.74701]
[1733185209934,0.55,3640.8,3640.4,0.04157998]
[1733185210133,0.8198,3640.9,3640.6,2.74672]
[1733185210334,7.17757252,3641.5,3640.2,2.7471]
[1733185210335,0.25616193,3641.0,3640.8,2.74664]
[1733185210644,0.25628734,3641.3,3641.1,2.74635]
[1733185210850,0.7894,3641.4,3640.9,2.6935848]
[1733185211052,0.7894,3641.4,3641.0,3.29049648]
[1733185211366,0.7894,3641.4,3641.0,0.0415961]
[1733185211367,0.25628734,3641.3,3641.0,0.0415961]
[1733185211645,0.25628734,3641.3,3640.6,2.74677]
[1733185211849,0.7894,3641.4,3641.1,0.0415961]
[1733185212147,1.04568734,3641.4,3641.2,0.0415961]
[1733185212367,0.7894,3641.4,3640.6,2.74679]
[1733185212507,1.59568734,3641.4,3641.3,0.0415961]
[1733185212707,1.59568734,3641.4,3640.7,0.53987303]
[1733185212903,0.25628734,3641.3,3640.7,0.53987303]
[1733185213323,0.25628734,3641.2,3640.7,0.53987303]
[1733185213522,0.25628734,3641.3,3640.5,2.65194034]
[1733185213811,0.80654568,3641.2,3640.3,2.747]
[1733185214011,0.25654568,3641.1,3640.3,2.747]
[1733185214212,0.25654568,3641.1,3640.4,2.74692]
[1733185214411,0.25654568,3641.0,3640.4,2.74692]
[1733185214646,0.25654568,3640.9,3640.5,0.377382]
[1733185214850,0.25654568,3641.1,3640.5,0.377382]
[1733185215096,0.55,3641.2,3640.5,0.377382]
[1733185215097,0.25654568,3641.0,3640.5,0.377382]
[1733185215347,0.25654568,3640.9,3640.3,0.02746492]
[1733185215545,0.25681042,3641.1,3641.0,2.74649]
[1733185215745,0.25681042,3641.3,3641.0,0.8197]
[1733185216047,1.83370399,3641.8,3641.0,0.84716091]
[1733185216260,0.41047309,3642.0,3641.9,2.74581]
[1733185216409,1.70929121,3642.5,3642.0,5.39766034]
[1733185216410,1.13952747,3642.4,3642.0,5.39766034]
[1733185216613,0.25671702,3642.3,3642.0,2.65194034]
[1733185216861,0.25671702,3642.2,3642.1,0.04112861]
[1733185217448,3.80850702,3642.2,3642.1,0.04112861]
[1733185217656,1.44376772,3642.2,3642.1,0.04112861]
[1733185217824,1.44376772,3642.2,3641.3,0.02745846]
[1733185218024,3.15583309,3642.5,3641.8,2.74583]
[1733185218025,0.25671702,3642.1,3641.8,2.74583]
[1733185218363,0.41047309,3642.5,3641.7,0.7839]
[1733185218364,0.25671702,3642.4,3641.7,0.7839]
[1733185218655,0.25671702,3642.3,3641.9,0.04112861]
[1733185218869,0.8062,3642.5,3642.0,0.04112861]
[1733185218870,0.25671702,3642.2,3642.0,0.04112861]
[1733185219067,0.25671702,3642.4,3641.8,2.74589]
[1733185219275,0.25671702,3642.3,3641.8,2.74589]
[1733185219429,0.25671702,3642.4,3641.9,0.04112861]
[1733185219630,0.25671702,3642.3,3641.9,0.04112861]
[1733185219869,0.25671702,3642.4,3641.9,0.04112861]
[1733185220095,0.25671702,3642.3,3641.9,0.04112861]
[1733185220276,0.25671702,3642.4,3641.9,0.04112861]
[1733185220446,0.25671702,3642.3,3641.9,0.04112861]
[1733185220769,0.25671702,3642.4,3641.9,2.78690861]
[1733185220968,0.25671702,3642.4,3641.9,3.40918351]
[1733185221325,0.8062,3642.5,3642.0,2.7457]
[1733185221584,0.25671702,3642.6,3642.0,2.65194034]
[1733185221730,0.25671702,3642.5,3642.3,2.74545]
[1733185222071,0.25671702,3642.7,3642.3,2.74549]
[1733185222432,0.8062,3642.8,3642.4,2.78653861]
[1733185223476,0.8062,3642.8,3642.4,0.04112861]
[1733185223637,0.8062,3642.8,3642.4,2.74541]
[1733185224139,0.8062,3642.8,3642.5,0.04112861]
[1733185224554,0.8062,3642.8,3642.1,2.74566]
[1733185224747,0.55,3642.7,3642.6,0.04112861]
[1733185225066,0.55,3642.7,3641.7,1.32541901]
[1733185225268,0.55,3642.7,3642.6,0.04112861]
[1733185225878,0.55,3642.7,3642.0,2.74573]
[1733185226077,0.55,3642.7,3642.6,0.04112861]
[1733185226280,0.55,3642.7,3642.0,0.0274541]
[1733185226499,0.55,3642.7,3642.0,2.74572]
[1733185226707,0.55,3642.7,3642.2,2.74552]
[1733185226912,0.55,3642.7,3642.1,0.04112861]
[1733185227198,0.55,3642.7,3642.0,2.74569]
[1733185227665,0.80671702,3642.7,3642.1,0.04112861]
[1733185227866,0.80671702,3642.7,3642.2,2.74558]
[1733185228065,0.80671702,3642.7,3642.0,2.74574]
[1733185228399,0.55,3642.7,3642.1,0.04112861]
[1733185228600,0.55,3642.7,3642.2,2.74555]
[1733185228957,0.55,3642.7,3642.3,0.04112861]
[1733185229158,0.55,3642.7,3642.0,2.74571]
[1733185229465,0.55,3642.7,3642.0,2.74572]
[1733185229666,0.55,3642.7,3642.1,0.04033374]
[1733185230150,0.55,3642.7,3642.2,2.74559]
[1733185230260,0.55,3642.7,3642.2,2.78592374]
[1733185231669,0.55,3642.7,3642.5,2.74534]
[1733185232172,0.7656,3643.1,3642.6,0.04033374]
[1733185232374,1.13952747,3643.1,3642.6,0.06785648]
[1733185232584,0.94730988,3643.0,3642.7,2.7452]
[1733185232802,2.5605082,3643.2,3642.7,2.7452]
[1733185232992,0.94746316,3643.1,3642.8,0.06785649]
[1733185233192,2.5605082,3643.2,3642.7,2.74515]
[1733185233369,1.13952747,3643.3,3642.9,0.06785649]
[1733185233568,3.32646459,3643.4,3642.9,2.745]
[1733185233774,3.32646459,3643.4,3642.8,0.02744787]
[1733185233775,0.94754796,3643.3,3643.0,0.02744778]
[1733185233988,1.5490546,3643.6,3643.2,2.74483]
[1733185234219,0.25595446,3643.3,3643.0,2.74495]
[1733185234524,0.25595446,3643.3,3642.8,2.74512]
[1733185234690,0.25595446,3643.3,3642.5,2.65194034]
[1733185235501,0.25595446,3643.3,3642.4,0.7978]
[1733185235703,0.25595446,3643.3,3641.8,3.93661594]
[1733185235704,0.55,3642.7,3641.8,3.93661594]
[1733185235913,0.55,3642.7,3641.9,2.74575]
[1733185236100,0.55,3642.8,3642.0,2.74574]
[1733185236501,0.55,3642.8,3641.8,0.793]
[1733185236831,2.74536,3642.5,3641.5,2.65194034]
[1733185236999,0.55,3642.8,3641.0,2.74649]
[1733185237000,0.55,3642.2,3641.2,0.56221215]
[1733185237202,0.55,3642.0,3641.2,1.1582744]
[1733185237407,3.29559,3642.2,3641.2,1.1582744]
[1733185237937,0.55,3642.2,3640.8,3.50288]
[1733185238107,1.13952747,3642.5,3640.8,3.50288]
[1733185238108,0.55,3641.9,3640.9,2.7465]
[1733185238491,0.55,3641.9,3641.0,2.74647]
[1733185238787,0.55,3642.0,3641.0,2.74646]
[1733185238995,3.2958,3642.0,3640.9,2.74657]
[1733185239194,3.2958,3642.0,3641.0,2.74649]
[1733185239427,0.55,3642.0,3641.0,2.74649]
[1733185239632,0.55,3642.0,3640.9,0.61548103]
[1733185239936,0.55,3642.0,3641.2,2.74633]
[1733185240595,0.55,3642.0,3641.3,0.06122163]
[1733185243013,0.55,3642.0,3641.1,2.74635]
[1733185243243,0.55,3642.0,3641.4,0.06122163]
[1733185243548,0.55,3642.0,3641.5,0.06144177]
[1733185243848,0.55,3642.0,3641.1,5.81010344]
[1733185244011,0.55,3642.0,3641.6,0.06144177]
[1733185244212,0.55,3642.0,3641.1,5.81010344]
[1733185244415,0.55,3642.0,3641.7,0.06144177]
[1733185244618,0.55,3642.0,3641.1,5.81010344]
[1733185244818,0.55,3642.0,3641.8,0.06144177]
[1733185245002,0.55,3642.0,3641.1,3.06375344]
[1733185245208,0.55,3642.0,3641.9,0.06144177]
[1733185245415,0.55,3642.0,3641.1,3.06375344]
[1733185245614,0.55,3642.0,3641.9,0.06144177]
[1733185245817,0.55,3642.3,3641.9,2.65194034]
[1733185246024,1.94422747,3642.7,3641.9,2.71338211]
[1733185246222,0.8047,3642.7,3642.0,0.02745416]
[1733185246655,0.8047,3643.4,3642.3,3.45674034]
[1733185247057,1.14677141,3643.1,3642.3,6.20225034]
[1733185247221,1.14677141,3643.1,3642.4,0.06144177]
[1733185247416,2.09500802,3643.0,3642.4,0.06144177]
[1733185247726,0.94823661,3642.9,3642.4,0.06144177]
[1733185247919,0.55,3642.9,3642.3,3.45674034]
[1733185248539,0.66748659,3642.8,3642.4,0.06144177]
[1733185248743,0.66748659,3642.8,3642.3,2.65194034]
[1733185248912,0.25672561,3642.7,3642.5,0.06144177]
[1733185249118,0.25672561,3642.6,3642.2,2.74557]
[1733185249344,0.25672561,3642.5,3642.3,0.06144177]
[1733185249543,0.25672561,3642.4,3642.2,0.61883103]
[1733185249752,0.25672561,3642.3,3642.2,0.61883103]
[1733185249955,0.25672561,3642.3,3642.2,3.36442103]
[1733185250468,0.25672561,3642.3,3641.9,2.74578]
[1733185250629,0.25672561,3642.2,3641.6,0.7773]
[1733185250828,0.25672561,3642.1,3641.5,5.39805034]
[1733185251029,1.55753239,3642.4,3641.6,2.74604]
[1733185251030,0.66748659,3642.0,3641.6,2.74604]
[1733185251357,0.25672561,3641.9,3641.7,0.53979803]
[1733185251552,1.55753239,3642.3,3641.7,0.53979803]
[1733185251553,0.25672561,3641.8,3641.7,0.53979803]
[1733185251757,0.25672561,3641.8,3641.5,2.65194034]
[1733185252061,0.25672561,3641.7,3641.3,3.52356]
[1733185252243,0.25672561,3641.6,3641.4,2.74617]
[1733185252446,0.55,3642.0,3641.3,0.7773]
[1733185252613,0.6675232,3641.9,3641.3,3.52356]
[1733185252813,0.25676222,3641.8,3641.4,0.77825745]
[1733185253046,0.25676222,3641.7,3641.4,0.77825745]
[1733185253361,0.25676222,3641.6,3641.4,0.77825745]
[1733185253521,1.97429813,3642.0,3641.1,6.36286602]
[1733185253522,0.25676222,3641.5,3641.1,3.1582331]
[1733185253717,0.25676222,3641.4,3641.1,3.1582331]
[1733185253917,0.7686,3641.7,3641.1,3.1582331]
[1733185254118,0.25680338,3641.6,3641.1,2.74642]
[1733185254441,0.25680373,3641.5,3641.1,2.74642]
[1733185254650,0.25680373,3641.4,3641.1,2.74642]
[1733185254843,0.7686,3641.7,3641.0,0.8136]
[1733185255016,0.80685207,3641.6,3640.3,3.47704034]
[1733185255220,0.7644,3641.1,3640.3,1.44752203]
[1733185255430,0.7644,3641.1,3639.9,2.65194034]
[1733185255431,0.80685207,3641.0,3640.1,3.2920461]
[1733185255664,0.25685207,3640.9,3640.1,3.2920461]
[1733185255952,0.25685207,3640.8,3640.2,2.74706]
[1733185256153,0.25685207,3640.7,3640.1,0.5449461]
[1733185256354,0.25685207,3640.6,3640.1,3.2920961]
[1733185256579,0.25685207,3640.9,3640.2,0.67691364]
[1733185256873,0.25685207,3640.8,3640.2,0.67691364]
[1733185257083,0.25685207,3640.7,3640.2,3.42399364]
[1733185257234,0.25685207,3640.6,3640.2,3.42399364]
[1733185257429,0.55,3641.0,3640.2,3.42399364]
[1733185257430,0.25685207,3640.9,3640.2,3.42399364]
[1733185257741,0.55,3641.0,3640.4,2.74694]
[1733185257933,0.25661387,3640.9,3640.4,2.74694]
[1733185258127,0.25661387,3640.8,3640.4,2.74694]
[1733185258370,0.25661387,3640.9,3640.5,2.74685]
[1733185259372,0.25661387,3640.9,3640.3,0.42490936]
[1733185259571,2.74688,3640.5,3639.4,2.74763]
[1733185259870,0.55,3640.4,3639.7,0.56025825]
[1733185260031,0.55,3640.4,3639.5,2.74761]
[1733185260477,0.7732,3640.1,3639.3,0.7527]
[1733185260643,0.7732,3640.1,3639.6,0.53701489]
[1733185261047,0.7732,3640.1,3639.1,3.75122134]
[1733185261048,0.55,3640.0,3639.7,0.05791069]
[1733185261431,3.7299688,3640.0,3638.9,3.52126]
[1733185261735,0.55,3639.8,3638.7,2.74816]
[1733185262071,0.55,3639.6,3638.8,0.05817399]
[1733185262436,0.55,3639.6,3638.7,2.74822]
[1733185262747,3.55359043,3639.8,3638.8,0.05853951]
[1733185262943,1.3576,3639.5,3638.8,0.05853951]
[1733185263183,1.3576,3639.5,3638.2,0.56318514]
[1733185263184,0.55,3639.2,3638.2,0.56318514]
[1733185263351,0.55,3639.0,3638.9,0.05853951]
[1733185263685,0.55,3639.0,3638.2,2.74861]
[1733185264097,0.55,3639.0,3638.3,0.05853951]
[1733185264403,0.55,3638.8,3638.3,0.05853951]
[1733185264570,0.55,3638.8,3637.8,3.84856]
[1733185264772,0.55,3638.6,3638.4,0.05963601]
[1733185264967,2.65194034,3639.0,3637.8,1.09967]
[1733185264968,0.55,3638.4,3637.8,1.09967]
[1733185265166,2.74864,3638.2,3637.8,1.09967]
[1733185265366,0.55,3638.1,3637.8,1.09967]
[1733185266359,0.55,3638.4,3637.8,1.09967]
[1733185266562,2.74883,3637.9,3637.8,1.09967]
[1733185266771,0.55,3637.9,3637.8,1.09967]
[1733185267174,0.55,3638.0,3637.8,1.09967]
[1733185267362,0.55,3638.0,3637.8,1.15826064]
[1733185267565,0.7651,3638.8,3637.8,1.15826064]
[1733185267758,0.7651,3638.8,3637.8,1.09967]
[1733185267759,0.55,3638.7,3637.8,1.09967]
[1733185267985,0.7651,3638.8,3637.9,0.05862831]
[1733185268226,0.758,3639.6,3637.9,2.73805248]
[1733185268365,0.758,3639.6,3638.5,0.7726]
[1733185268707,0.758,3639.6,3638.7,2.65194034]
[1733185269003,0.758,3639.6,3638.7,2.74821]
[1733185269171,0.758,3639.6,3638.8,0.41053711]
[1733185269377,0.758,3639.6,3638.8,3.15868711]
[1733185270008,0.55,3639.5,3638.8,3.15868711]
[1733185270304,0.758,3639.6,3638.8,0.41053711]
[1733185270460,0.758,3639.6,3639.1,2.74792]
[1733185270664,0.758,3639.6,3639.2,0.274792]
[1733185270859,0.758,3639.6,3639.2,0.33259189]
[1733185272203,0.758,3639.6,3639.2,3.08041189]
[1733185272510,0.758,3639.6,3639.3,0.02747535]
[1733185272726,0.55,3640.0,3639.5,2.74763]
[1733185272880,0.7793,3640.1,3639.6,2.7749841]
[1733185273078,0.7793,3640.1,3639.6,2.80514859]
[1733185273518,0.7793,3640.1,3639.6,0.05763859]
[1733185273672,2.74726,3640.0,3639.6,0.05763859]
[1733185273978,2.74726,3640.0,3638.2,5.88154459]
[1733185273979,0.81,3638.8,3638.1,0.55579995]
[1733185274177,3.55817,3638.8,3637.9,1.099623]
[1733185274517,3.55817,3638.8,3637.4,3.93624459]
[1733185274518,0.55,3638.7,3637.4,0.8033]
[1733185274683,0.55,3638.1,3637.0,3.849382]
[1733185274887,0.55,3637.9,3636.9,0.7729]
[1733185275117,0.55,3637.9,3637.0,0.55239048]
[1733185275571,0.55,3637.9,3637.3,2.74928]
[1733185275776,0.55,3637.9,3637.3,3.07944705]
[1733185275978,0.55,3637.9,3637.4,0.05550223]
[1733185277371,0.55,3637.9,3637.2,2.74936]
[1733185277577,0.55,3637.9,3637.5,0.05550223]
[1733185277829,0.55,3637.9,3637.2,2.74936]
[1733185278121,0.55,3637.9,3637.6,0.05550223]
[1733185278282,0.55,3637.9,3637.3,2.74923]
[1733185278481,0.55,3637.9,3637.7,0.05550223]
[1733185278691,0.55,3637.9,3637.0,0.55239048]
[1733185278692,0.55,3637.9,3637.3,2.74928]
[1733185279031,0.55,3637.9,3637.1,2.74943]
[1733185279201,0.55,3637.9,3637.4,0.05550223]
[1733185279409,0.55,3637.9,3637.3,2.74927]
[1733185279719,0.55,3637.9,3637.5,0.05550223]
[1733185279902,0.55,3637.9,3637.0,0.55239048]
[1733185280212,0.55,3637.9,3637.2,2.74931]
[1733185280623,0.55,3637.9,3637.3,2.74927]
[1733185280796,0.7944,3638.7,3637.4,0.02748969]
[1733185280998,0.7944,3638.7,3637.5,3.13294459]
[1733185281304,0.7944,3638.7,3637.8,2.74889]
[1733185281678,0.7944,3638.7,3637.9,0.0564166]
[1733185281882,0.7944,3638.7,3637.9,2.8052466]
[1733185282299,0.55,3638.6,3637.9,3.08575126]
[1733185282677,0.55,3638.6,3638.0,2.74876]
[1733185283164,0.55,3638.6,3638.1,0.05641122]
[1733185283725,0.55,3638.6,3638.2,0.05641122]
[1733185284027,0.55,3638.6,3638.0,2.74876]
[1733185284257,0.55,3638.6,3638.3,0.05641122]
[1733185284439,0.55,3638.6,3638.0,2.74876]
[1733185284656,0.55,3638.6,3638.4,0.05641122]
[1733185285029,0.959255,3638.6,3637.4,2.74915]
[1733185285224,0.959255,3638.6,3636.4,0.1]
[1733185285225,3.707555,3638.6,3638.5,0.05641122]
[1733185285424,0.55,3638.4,3636.9,3.52244]
[1733185285729,0.55,3638.1,3637.3,2.74929]
[1733185285927,0.55,3638.1,3637.0,3.30183048]
[1733185286239,0.55,3638.1,3637.0,0.55239048]
[1733185286574,0.55,3639.2,3637.9,2.74883]
[1733185286888,0.55,3639.0,3638.1,0.2746]
[1733185287063,0.55,3639.0,3638.1,2.74868]
[1733185287266,0.55,3639.0,3637.7,0.8085]
[1733185287585,3.298,3639.0,3638.2,0.05682529]
[1733185287781,3.298,3639.0,3637.9,2.74881]
[1733185287944,0.55,3638.8,3638.3,0.05682529]
[1733185288279,0.55,3638.6,3637.1,3.13294459]
[1733185288449,1.3608,3638.5,3638.4,0.05682529]
[1733185288642,1.3608,3638.5,3637.0,1.65049048]
[1733185288643,0.55,3638.4,3637.5,2.74907]
[1733185288957,0.55,3638.4,3637.6,2.74906]
[1733185289651,0.55,3638.4,3637.2,0.2746]
[1733185289853,0.55,3638.4,3637.4,2.74919]
[1733185290325,3.29847,3638.4,3637.2,2.74934]
[1733185290480,0.55,3638.2,3637.3,2.74925]
[1733185290799,0.55,3638.2,3637.0,1.65049048]
[1733185290800,0.8122,3638.1,3637.0,0.2746]
[1733185291094,0.8167,3637.9,3637.4,0.05507102]
[1733185291255,0.8167,3637.9,3637.0,2.7495]
[1733185291256,0.55,3637.8,3637.0,2.7495]
[1733185291451,0.55,3637.8,3636.6,0.02749173]
[1733185291756,0.55,3637.8,3637.1,3.40754459]
[1733185291990,0.55,3637.8,3637.3,2.74924]
[1733185292451,0.55,3637.8,3637.1,0.2746]
[1733185292452,0.55,3637.8,3637.4,2.74918]
[1733185292658,0.55,3637.8,3637.4,2.80425102]
[1733185293205,0.55,3637.8,3637.4,0.05507102]
[1733185293498,3.0,3639.2,3637.5,2.74914]
[1733185293499,0.8144,3638.7,3637.5,2.74914]
[1733185293661,0.8144,3638.7,3637.4,3.78594644]
[1733185293855,0.8144,3638.7,3637.8,2.74884]
[1733185294061,3.8144,3638.7,3637.8,2.74884]
[1733185294457,3.8144,3638.7,3637.9,0.05507102]
[1733185294661,4.470658,3638.7,3637.9,0.05507102]
[1733185294907,0.55,3638.6,3637.9,0.05507102]
[1733185295404,0.55,3638.6,3638.0,0.05507102]
[1733185295611,7.218918,3638.7,3638.0,0.05507102]
[1733185295612,0.8194,3638.2,3638.0,0.05507102]
[1733185295902,0.55,3637.8,3636.8,0.2746]
[1733185296197,0.55,3637.8,3637.3,2.74927]
[1733185296697,0.55,3637.8,3636.8,0.577036]
[1733185296993,0.55,3637.8,3637.1,2.74941]
[1733185297578,0.55,3637.8,3637.2,0.05507102]
[1733185298504,0.55,3637.6,3637.4,2.7492]
[1733185298675,0.25789003,3637.5,3637.4,3.02412]
[1733185299208,0.42981673,3638.3,3638.2,2.74861]
[1733185299362,4.0,3638.3,3638.2,2.74861]
[1733185299698,0.42981673,3638.5,3637.9,2.74883]
[1733185299900,0.4125404,3638.4,3638.3,2.74849]
[1733185300199,0.67037797,3638.4,3638.3,2.74849]
[1733185300408,0.25783757,3638.4,3638.3,2.74849]
[1733185301007,0.25722788,3638.4,3638.3,2.74849]
[1733185303988,0.25734654,3638.4,3638.3,2.74849]
[1733185304615,0.25734654,3638.4,3638.3,3.36778375]
[1733185304916,0.25734776,3638.4,3638.3,0.61929375]
[1733185305122,0.25734776,3638.4,3637.7,0.2746]
[1733185305409,0.25734776,3638.3,3637.9,2.74876]
[1733185305614,1.91027141,3638.8,3637.7,0.2746]
[1733185305615,0.25734776,3638.2,3637.7,3.02356]
[1733185305783,0.25734776,3638.1,3637.9,2.74883]
[1733185305982,0.96183142,3638.6,3638.0,0.05520022]
[1733185306307,0.55,3638.2,3638.0,0.05520022]
[1733185306509,0.8073991,3638.1,3638.0,0.05520022]
[1733185306818,0.55,3638.0,3637.5,3.29044061]
[1733185307109,0.2573991,3637.9,3637.5,3.29044061]
[1733185307316,0.55,3638.0,3637.5,0.54131061]
[1733185307317,0.2573991,3637.8,3637.5,0.54131061]
[1733185307520,0.55,3638.0,3637.5,0.54131061]
[1733185307685,0.25739669,3637.9,3637.4,2.74921]
[1733185308009,0.25739669,3637.8,3637.2,0.2746]
[1733185308224,0.55,3638.2,3637.3,0.377828]
[1733185308513,0.7644,3638.3,3637.3,0.377828]
[1733185308514,0.25734994,3638.1,3637.9,2.74877]
[1733185308717,0.7644,3638.3,3637.9,0.02748517]
[1733185308878,0.25732467,3638.2,3638.1,2.74864]
[1733185309076,0.55,3638.6,3638.1,2.74864]
[1733185309274,0.55,3638.4,3638.1,2.74864]
[1733185309475,0.25734224,3638.3,3637.9,2.74881]
[1733185309682,0.25734224,3638.2,3637.9,2.74881]
[1733185309885,0.25734224,3638.1,3637.9,2.74881]
[1733185310218,0.25734224,3638.0,3637.9,2.74881]
[1733185310515,0.55,3638.5,3637.9,2.74881]
[1733185310715,1.97457141,3638.7,3637.9,2.74881]
[1733185310716,0.55,3638.3,3637.9,2.74881]
[1733185310871,0.25737192,3638.2,3637.9,2.74881]
[1733185311075,0.8044,3637.9,3637.5,0.2746]
[1733185311276,0.8044,3637.9,3637.6,0.02748669]
[1733185311475,0.8044,3638.2,3637.3,3.13294459]
[1733185311677,0.25739585,3638.1,3637.5,0.7672]
[1733185311915,0.55,3638.3,3638.0,2.74876]
[1733185312075,0.25737827,3638.2,3637.5,0.7672]
[1733185312276,0.55,3638.4,3638.1,2.74868]
[1733185312473,0.55,3638.4,3637.7,2.74898]
[1733185312474,0.257391,3638.3,3637.7,2.74898]
[1733185312730,0.257391,3638.2,3638.1,2.74868]
[1733185312907,0.55,3638.4,3638.1,2.74868]
[1733185313090,0.25739485,3638.3,3638.1,2.74868]
[1733185313279,0.80739485,3638.2,3638.1,2.74868]
[1733185314223,0.80739485,3638.2,3637.9,2.7488]
[1733185314515,0.8044,3638.5,3637.9,2.7488]
[1733185314516,0.55,3638.4,3637.9,2.7488]
[1733185314678,0.2574273,3638.3,3637.9,2.7488]
[1733185314885,0.8074273,3638.2,3637.8,0.379078]
[1733185315081,0.55,3638.4,3637.8,3.127958]
[1733185315276,0.55,3638.2,3637.9,2.74883]
[1733185315688,0.55,3638.4,3637.9,2.74883]
[1733185315904,0.55,3638.2,3637.9,2.74883]
[1733185316106,0.25744255,3638.1,3637.9,2.74883]
[1733185316416,0.55,3638.3,3637.9,2.74883]
[1733185316581,0.25745048,3638.2,3637.8,0.379078]
[1733185316782,0.25745048,3638.1,3637.9,2.74882]
[1733185317091,1.21628345,3638.5,3637.7,2.74897]
[1733185317289,1.21628345,3638.5,3637.6,2.92751417]
[1733185317290,3.3178434,3638.4,3637.6,0.2746]
[1733185317494,0.55,3638.2,3637.6,0.2746]
[1733185317681,0.55,3638.0,3637.6,0.2746]
[1733185317881,0.55,3637.8,3637.6,0.2746]
[1733185318082,0.55,3638.0,3637.6,0.2746]
[1733185318318,0.25746193,3637.9,3637.6,0.2746]
[1733185318525,1.83899031,3638.2,3637.2,3.40741417]
[1733185318526,1.333,3637.8,3637.3,3.02386]
[1733185318895,1.333,3637.8,3637.3,0.2746]
[1733185319097,0.55,3637.6,3637.1,2.74937]
[1733185319310,1.333,3637.8,3637.1,2.74937]
[1733185319515,0.55,3637.6,3637.1,2.74937]
[1733185319821,0.55,3637.6,3637.0,0.2746]
[1733185320025,1.97934117,3637.7,3637.1,2.74944]
[1733185320185,1.97934117,3637.7,3637.0,0.2746]
[1733185320186,0.55,3637.5,3637.0,0.2746]
[1733185320532,0.55,3637.6,3637.0,0.94483142]
[1733185320828,0.55,3637.7,3636.9,2.74958]
[1733185320984,0.55,3637.5,3637.1,0.05501182]
[1733185321184,0.55,3637.5,3636.8,6.19602652]
[1733185321185,0.55,3637.5,3637.3,2.74925]
[1733185321381,0.55,3637.7,3637.4,0.05501182]
[1733185321806,0.55,3637.7,3636.9,2.74954]
[1733185322006,0.55,3637.7,3637.5,0.05501182]
[1733185322206,0.55,3637.7,3637.3,2.74926]
[1733185322411,0.55,3637.7,3637.6,0.05501182]
[1733185322621,1.76033411,3637.7,3637.2,2.65291417]
[1733185322917,1.14677141,3638.0,3637.6,0.05501182]
[1733185323119,0.25729825,3637.9,3637.4,2.74921]
[1733185323284,1.17200307,3638.2,3637.3,3.7992]
[1733185323285,1.90687141,3638.2,3637.8,2.74891]
[1733185323488,0.25728355,3638.1,3638.0,2.74876]
[1733185323934,0.25725101,3638.3,3637.7,2.74898]
[1733185324141,1.14677141,3638.4,3638.1,2.74866]
[1733185324434,2.63954929,3638.3,3638.2,0.05525398]
[1733185324639,2.63954929,3638.3,3637.6,2.74899]
[1733185324850,2.63954929,3638.3,3637.3,3.2746]
[1733185324851,1.15254601,3638.1,3637.3,3.02388]
[1733185325013,1.15254601,3637.9,3637.7,0.05529165]
[1733185325212,0.8294,3637.7,3636.5,0.8278]
[1733185325514,3.18980529,3637.6,3636.9,3.02418]
[1733185325722,0.55,3637.4,3636.9,0.2746]
[1733185326029,0.55,3637.4,3637.0,0.05138205]
[1733185326837,0.55,3637.4,3636.7,2.74974]
[1733185326998,0.55,3637.4,3637.1,0.05138205]
[1733185327195,0.55,3637.4,3636.7,2.74974]
[1733185327400,0.55,3637.4,3636.8,0.05138205]
[1733185327643,0.55,3637.2,3636.8,0.05138205]
[1733185328002,0.55,3637.0,3636.4,2.7499]
[1733185328211,0.55,3637.0,3636.5,0.05138205]
[1733185328412,2.23568236,3637.1,3636.5,0.05138205]
[1733185328647,0.55,3636.9,3636.1,0.55493662]
[1733185328841,0.55,3636.9,3636.6,0.05138205]
[1733185329016,0.55,3636.9,3636.2,2.75011]
[1733185329348,0.8023,3636.8,3636.7,0.05138205]
[1733185329516,0.55,3636.7,3635.9,0.55805277]
[1733185329838,0.55,3636.7,3636.3,2.75]
[1733185330043,0.55,3636.7,3636.1,2.75017]
[1733185330357,0.55,3636.7,3635.9,0.2746]
[1733185330497,0.55,3636.7,3636.2,0.05219947]
[1733185330703,0.55,3636.5,3635.7,2.7505]
[1733185330901,1.3544,3636.4,3636.3,0.05219947]
[1733185331105,1.3544,3636.4,3635.7,2.7505]
[1733185331106,0.55,3636.3,3635.7,2.7505]
[1733185331308,0.55,3636.3,3635.4,0.54044685]
[1733185331661,0.55,3636.3,3635.4,2.75071]
[1733185331857,0.55,3636.3,3635.5,0.05047563]
[1733185332066,1.14238193,3636.3,3635.5,0.05047563]
[1733185332374,0.55,3636.1,3635.5,0.05047563]
[1733185332532,0.55,3636.1,3635.5,2.80109563]